[Event "European Women Blitz-ch 2024"]
[Site "Monaco"]
[Date "2025.01.10"]
[Round "12.18"]
[White "Kubicka, Anna"]
[Black "Gaponenko, Inna"]
[Result "0-1"]
[Annotator "TA"]
[ECO "B27"]
[WhiteElo "2230"]
[BlackElo "2346"]
[PlyCount "108"]
[EventDate "2025.01.06"]
[EventType "swiss"]
[EventCountry "MNC"]
[SourceTitle "playchess.com"]
[Source "ChessBase"]
[SourceQuality "1"]
[TimeControl "180+2"]

{[%evp 9,108,-104,-96,-112,-104,-111,-106,-120,-93,-125,-119,-109,-126,-147,-110,-107,-78,-83,-82,-81,-84,-86,-46,-55,-58,-94,-50,-79,-40,-47,-10,-36,0,-21,0,-56,-53,-58,-67,-74,-67,-35,12,-62,-66,-74,-83,-90,-72,-87,-79,-112,-72,-200,-112,-85,-51,-106,545,541,500,174,163,-152,0,0,9,-358,-339,-380,-369,-411,-412,-712,-637,-692,-670,-687,-676,-658,-618,-881,-839,-4291,-4681,-2495,-1386,-1791,-1680,-4133,-4291,-2279,-1981,-29976,-29977,-29987,-29988,-29988,-29989,-29994,-29990]} 1. e4 {[%emt 0:00:01]} c5 {[%emt 0:00:01]} 2. Nf3 {[%emt 0:00:01]} g6 {[%emt 0:00:00]} 3. c3 {[%emt 0:00:01]} Nf6 {[%emt 0:00:02]} 4. h3 {[%emt 0:00:04]} Nxe4 {[%emt 0:00:10]} 5. Bb5 {[%emt 0:00:03]} Bg7 {[%emt 0:00:05]} 6. O-O {[%emt 0:00:03]} O-O {[%emt 0:00:03] Black is more active.} 7. Re1 {[%emt 0:00:02]} d5 {[%emt 0:00:10]} 8. d3 {[%emt 0:00:03]} Nf6 {[%emt 0:00:08]} 9. Ne5 {[%emt 0:00:12]} a6 {[%emt 0:00:03]} 10. Ba4 {[%emt 0:00:01]} b5 {[%emt 0:00:06]} 11. Bc2 {[%emt 0:00:01]} Bb7 {[%emt 0:00:02]} 12. d4 {[%emt 0:00:10]} c4 {[%emt 0:00:02]} 13. Bf4 {[%emt 0:00:07]} Nbd7 {[%emt 0:00:03]} 14. Nd2 {[%emt 0:00:04]} Nxe5 {[%emt 0:00:07]} 15. Bxe5 {[%emt 0:00:02]} Nd7 {[%emt 0:00:10]} 16. Bxg7 {[%emt 0:00:10]} Kxg7 {[%emt 0:00:01]} 17. f4 {[%emt 0:00:04]} Nf6 {[%emt 0:00:11]} 18. Qe2 {[%emt 0:00:32]} Re8 {[%emt 0:00:04]} 19. g4 {[%emt 0:00:14]} Bc8 {[%emt 0:00:04]} 20. Qe5 {[%emt 0:00:12]} Kg8 {[%emt 0:00:03]} 21. Nf3 {[%emt 0:00:31]} Qd6 {[%emt 0:00:24]} 22. Qxd6 {[%emt 0:00:16]} (22. Qe3 $11) 22... exd6 $15 {[%emt 0:00:01]} 23. Rxe8+ {[%emt 0:00:02]} Nxe8 {[%emt 0:00:01]} 24. Re1 {[%emt 0:00:01]} Bd7 {[%emt 0:00:12]} 25. Re7 {[%emt 0:00:14]} Be6 {[%emt 0:00:27]} (25... Ra7 $15) 26. f5 {[%emt 0:00:15]} (26. Ng5 $11 Ng7 (26... Kf8 27. Rb7 $14) 27. b3) 26... Kf8 {[%emt 0:00:13]} 27. Rb7 {[%emt 0:00:04]} Bc8 {[%emt 0:00:18]} 28. Rb6 {[%emt 0:00:01]} Ke7 $1 {[%emt 0:00:05]} 29. a4 {[%emt 0:00:11]} gxf5 {[%emt 0:00:04]} 30. gxf5 {[%emt 0:00:05]} Bd7 {[%emt 0:00:14]} 31. Ng5 {[%emt 0:00:10]} (31. a5 $17 {was called for.}) 31... h6 {[%emt 0:00:05]} (31... bxa4 $19 32. Nxh7 Kd8) 32. Nh7 $17 {[%emt 0:00:02]} Nc7 {[%emt 0:00:17]} 33. f6+ {[%emt 0:00:03]} (33. Rb7 $1 $15 Rc8 34. Kf2) 33... Ke6 $2 {[%emt 0:00:01][%mdl 8192]} (33... Ke8 $1 $17 {keeps the pressure on.}) 34. Rb7 $1 $18 {[%emt 0:00:02]} Rc8 {[%emt 0:00:06]} 35. Ra7 $2 {[%emt 0:00:03]} (35. Bd1 {[%cal Rd1g4]} h5 36. Bxh5) 35... Bc6 {[%emt 0:00:04] [#]} 36. Nf8+ $2 {[%emt 0:00:02]} Rxf8 $2 {[%emt 0:00:02]} (36... Kxf6 $1 $17 {[%cal Ob5a4] Threatens to win with ...bxa4!.} 37. Nh7+ Ke7 38. axb5 axb5) 37. Rxc7 $17 {[%emt 0:00:01][%mdl 4096] Endgame KRB-KRB. Black is a pawn up.} Bd7 {[%emt 0:00:02] [#]} 38. Bf5+ $2 {[%emt 0:00:02][%mdl 8192]} Kxf5 $19 {[%emt 0:00:01]} 39. Rxd7 {[%emt 0:00:01] KR-KR. Black is a pawn up.} Ke6 {[%emt 0:00:02]} (39... bxa4 40. Rxd6 Rg8+ 41. Kf1 $11) 40. Ra7 {[%emt 0:00:02]} bxa4 {[%emt 0:00:00]} 41. Rxa6 {[%emt 0:00:01]} (41. Rb7 $142) 41... Rb8 {[%emt 0:00:01]} (41... Kxf6 42. Rxd6+ Kf5 43. Rxd5+ Ke4 44. Ra5 $15) 42. Rxa4 {[%emt 0:00:02]} Rxb2 {[%emt 0:00:01][%cal Ob2b3]} 43. Ra8 {[%emt 0:00:05]} Rb3 {[%emt 0:00:01]} 44. Re8+ {[%emt 0:00:03]} Kxf6 {[%emt 0:00:01]} ({Less strong is} 44... Kf5 45. Re3 $17) 45. Rh8 {[%emt 0:00:01]} Rxc3 {[%emt 0:00:02]} 46. Rxh6+ {[%emt 0:00:01]} Ke7 {[%emt 0:00:01]} 47. Rh5 {[%emt 0:00:03]} Ke6 {[%emt 0:00:01]} 48. Rh6+ {[%emt 0:00:01]} f6 {[%emt 0:00:01]} 49. Rh8 {[%emt 0:00:02]} Rd3 {[%emt 0:00:00]} 50. Re8+ {[%emt 0:00:01]} Kf5 {[%emt 0:00:01]} 51. Rd8 {[%emt 0:00:01]} Rxd4 {[%emt 0:00:02]} 52. Rxd6 {[%emt 0:00:01]} c3 {[%emt 0:00:00]} 53. Rc6 {[%emt 0:00:01]} Rc4 {[%emt 0:00:03]} 54. Rd6 {[%emt 0:00:03]} d4 {[%emt 0:00:02]} 0-1

[Event "European Women Blitz-ch 2024"]
[Site "Monaco"]
[Date "2025.01.10"]
[Round "13.1"]
[White "Maltsevskaya, Aleksandra"]
[Black "Khotenashvili, Bella"]
[Result "1-0"]
[Annotator "TA"]
[ECO "B06"]
[WhiteElo "2368"]
[BlackElo "2420"]
[PlyCount "99"]
[EventDate "2025.01.06"]
[EventType "swiss"]
[EventCountry "MNC"]
[SourceTitle "playchess.com"]
[Source "ChessBase"]
[SourceQuality "1"]
[TimeControl "180+2"]

{[%evp 15,99,58,60,48,54,8,48,41,62,50,54,50,67,59,83,70,97,97,245,230,225,223,275,289,282,282,275,243,230,183,185,187,162,95,106,96,138,107,132,89,107,68,69,37,53,18,187,197,206,216,197,106,412,411,473,456,514,489,517,509,448,450,515,488,495,479,566,549,546,529,443,422,404,368,441,424,439,439,439,438,438,436,427,412,973,964]} 1. e4 {[%emt 0:00:01]} c6 {[%emt 0:00:01]} 2. d4 {[%emt 0:00:02]} g6 {[%emt 0:00:01]} 3. Nf3 {[%emt 0:00:02]} Bg7 {[%emt 0:00:07]} 4. h3 {[%emt 0:00:06]} d5 {[%emt 0:00:03]} 5. e5 {[%emt 0:00:02]} Nh6 {[%emt 0:00:02]} 6. Bd3 {[%emt 0:00:04]} O-O {[%emt 0:00:10]} 7. O-O {[%emt 0:00:02]} f6 {[%emt 0:00:01]} 8. exf6 {[%emt 0:00:06]} exf6 {[%emt 0:00:02]} 9. c4 {[%emt 0:00:02]} Be6 {[%emt 0:00:22]} 10. Qb3 {[%emt 0:00:30]} (10. b3 $14 {was preferable.}) 10... Qb6 {[%emt 0:00:28]} 11. Nc3 {[%emt 0:00:13]} dxc4 {[%emt 0:00:26]} 12. Bxc4 {[%emt 0:00:03]} Qxb3 {[%emt 0:00:10]} 13. axb3 {[%emt 0:00:01]} Bf7 {[%emt 0:00:05]} 14. Re1 {[%emt 0:00:07]} Nf5 {[%emt 0:00:02]} 15. Bf4 {[%emt 0:00:06]} g5 {[%emt 0:00:19]} 16. Bh2 {[%emt 0:00:29] White is much more active. The black rooks are passive.} Rd8 {[%emt 0:00:34]} (16... Nd7 $16) 17. g4 $1 $18 {[%emt 0:00:18]} Nh6 {[%emt 0:00:19] [#] Black is weak on the light squares} 18. Re7 $1 {[%emt 0:00:13]} Nd7 {[%emt 0:00:10]} 19. Bc7 {[%emt 0:00:04]} Bf8 {[%emt 0:00:08]} 20. Bxd8 {[%emt 0:00:01]} Rxd8 {[%emt 0:00:00]} 21. Re2 {[%emt 0:00:07]} a6 {[%emt 0:00:02]} 22. Rae1 {[%emt 0:00:07]} Nb6 {[%emt 0:00:01]} 23. Bxf7+ {[%emt 0:00:05]} Kxf7 {[%emt 0:00:05]} 24. Ne4 {[%emt 0:00:04]} (24. h4 $18) 24... Nd5 {[%emt 0:00:04]} 25. Kh2 {[%emt 0:00:15]} Ng8 {[%emt 0:00:03][%cal Bh6g8,Bg8e7,Be7g6][%mdl 32]} 26. h4 {[%emt 0:00:10]} Bb4 {[%emt 0:00:04]} 27. Rd1 {[%emt 0:00:04]} h6 {[%emt 0:00:01]} 28. Kg3 {[%emt 0:00:03]} Nge7 {[%emt 0:00:01]} 29. hxg5 {[%emt 0:00:01]} hxg5 {[%emt 0:00:02]} 30. Rh1 {[%emt 0:00:01]} Kg7 $2 {[%emt 0:00:02] [#]} (30... Nf4 $1 $11 {and Black has nothing to worry.} 31. Rc2 Kg7) 31. Nc5 $1 {[%emt 0:00:10]} Bxc5 {[%emt 0:00:03]} 32. dxc5 {[%emt 0:00:01]} Ng6 {[%emt 0:00:03]} 33. Nd4 {[%emt 0:00:01]} (33. Re6 $18) 33... Rd7 $2 {[%emt 0:00:02][%mdl 8192]} (33... Ndf4 $16 {is a better chance.} 34. Nf5+ Kf8) 34. Nf5+ {[%emt 0:00:03]} Kg8 {[%emt 0:00:01]} 35. Re8+ {[%emt 0:00:04]} Nf8 {[%emt 0:00:02]} 36. Rhe1 {[%emt 0:00:12]} Kf7 {[%emt 0:00:03]} 37. Nd6+ {[%emt 0:00:02]} Kg7 {[%emt 0:00:07]} 38. Rb8 {[%emt 0:00:02] Black must now prevent Nf5+.} Nf4 {[%emt 0:00:00]} 39. Rxb7 {[%emt 0:00:04]} Rxb7 {[%emt 0:00:00]} 40. Nxb7 {[%emt 0:00:01][%mdl 4096] Endgame KRN-KNN} N8e6 {[%emt 0:00:00]} 41. Rd1 {[%emt 0:00:03]} Nd5 {[%emt 0:00:02] [#]} 42. b4 $1 {[%emt 0:00:05]} Kf7 {[%emt 0:00:03]} (42... Nxb4 43. Kf3) 43. Na5 {[%emt 0:00:03]} Nxb4 {[%emt 0:00:01]} 44. Rd7+ {[%emt 0:00:01]} Kg6 {[%emt 0:00:01]} 45. Rd6 {[%emt 0:00:01]} Nxc5 {[%emt 0:00:01]} 46. f3 {[%emt 0:00:03] Against Ne4+} ({And not} 46. Nxc6 Ne4+ 47. Kg2 Nxd6 $11) 46... Na4 {[%emt 0:00:02]} 47. b3 {[%emt 0:00:05]} (47. Nxc6 Nxc6 48. Rxc6 Nxb2 49. Rxa6 Nd3 $18) 47... Nc5 {[%emt 0:00:02]} 48. Rd4 {[%emt 0:00:02]} (48. Nxc6 Nxc6 49. Rxc6 Nxb3 $18) 48... Nbd3 {[%emt 0:00:02]} 49. b4 {[%emt 0:00:02]} ({Weaker is} 49. Nxc6 Nc1 50. Rd6 N1xb3 $18) 49... Nxb4 {[%emt 0:00:07]} (49... Nf4 $142 50. Rd6 (50. bxc5 Ne2+ 51. Kf2 Nxd4 $17) 50... Ncd3 51. Nxc6 (51. Rxc6 Ne2+ 52. Kg2 Nef4+ 53. Kh2 Nxb4 $18) 51... Kf7) 50. Rxb4 {[%emt 0:00:01]} 1-0

[Event "European Women Blitz-ch 2024"]
[Site "Monaco"]
[Date "2025.01.10"]
[Round "13.2"]
[White "Kosteniuk, Alexandra"]
[Black "Roebers, Eline"]
[Result "1-0"]
[Annotator "TA"]
[ECO "B21"]
[WhiteElo "2484"]
[BlackElo "2381"]
[PlyCount "57"]
[EventDate "2025.01.06"]
[EventType "swiss"]
[EventCountry "MNC"]
[SourceTitle "playchess.com"]
[Source "ChessBase"]
[SourceQuality "1"]
[TimeControl "180+2"]

{[%evp 9,57,7,0,4,10,-21,16,0,38,17,21,30,13,21,58,43,99,87,91,86,87,91,86,89,262,0,10,0,454,58,76,81,630,639,792,793,672,252,228,256,989,164,154,155,144,158,253,177,29998,710]} 1. e4 {[%emt 0:00:01]} c5 {[%emt 0:00:00]} 2. d4 {[%emt 0:00:01]} cxd4 {[%emt 0:00:01]} 3. Qxd4 {[%emt 0:00:01]} Nc6 {[%emt 0:00:01]} 4. Qd3 {[%emt 0:00:01]} Nf6 {[%emt 0:00:04]} 5. Nc3 {[%emt 0:00:01]} e6 {[%emt 0:00:01]} 6. Bf4 {[%emt 0:00:01]} a6 {[%emt 0:00:03]} 7. O-O-O {[%emt 0:00:12]} Qa5 {[%emt 0:00:11]} 8. Kb1 {[%emt 0:00:13] The position is equal.} Be7 {[%emt 0:00:09]} 9. h4 {[%emt 0:00:16][%cal Oh4h5]} O-O {[%emt 0:00:27][%cal Od7d5] [#]} 10. h5 $1 {[%emt 0:00:08]} d5 {[%emt 0:00:29] ...d4 is the strong threat.} 11. e5 $1 {[%emt 0:00:13][%cal Oh5h6]} Nb4 {[%emt 0:00:08]} 12. Qf3 {[%emt 0:00:16]} Ne4 {[%emt 0:00:04]} 13. a3 $16 {[%emt 0:00:16][%cal Oc3e4]} Nxc3+ {[%emt 0:00:04]} 14. Qxc3 {[%emt 0:00:03][%cal Oh5h6] h6! would now be deadly.} Nc6 {[%emt 0:00:01]} 15. Qg3 {[%emt 0:00:03] White is more active.} f6 {[%emt 0:00:06]} 16. Nf3 {[%emt 0:00:11]} b5 $2 {[%emt 0:00:28]} (16... Qb6 $16 {might work better.}) 17. Nd4 $2 {[%emt 0:00:22]} (17. exf6 $18 Bxf6 18. h6) 17... Nxd4 $1 $11 {[%emt 0:00:06]} 18. Rxd4 {[%emt 0:00:01] Hoping for Bh6.} Qb6 $2 {[%emt 0:00:17][%mdl 8192] [#]} (18... Qe1+ $11 19. Ka2 Rf7) 19. Be3 $2 {[%emt 0:00:13]} (19. Bh6 $1 $18 {[%csl Gh6][%cal Rg3g7]} Rf7 20. Rg4) 19... Qc7 $1 $14 {[%emt 0:00:12]} 20. Rg4 $40 {[%emt 0:00:02][%mdl 128] Black is in trouble.} Rf7 {[%emt 0:00:07][%mdl 8192]} (20... Bd8 $16) 21. h6 $18 {[%emt 0:00:01]} g5 {[%emt 0:00:19]} 22. exf6 {[%emt 0:00:06]} Qxg3 {[%emt 0:00:03]} 23. Rxg3 $2 {[%emt 0:00:01]} ({Less strong is} 23. fxg3 Bxf6 24. Rh5 (24. Bxg5 e5 $15) 24... Kh8 $14 (24... e5 25. Rhxg5+ Bxg5 26. Rxg5+ Kh8 27. Bd3 $16)) (23. fxe7 Qxg4 24. e8=Q+ (24. e8=B $2 Qd1+ 25. Ka2 e5 $19) 24... Rf8 25. Qc6 (25. Qe7 Rf7 $18)) 23... Bxf6 {[%emt 0:00:01]} 24. Bxg5 {[%emt 0:00:01]} Kh8 $2 {[%emt 0:00:09]} (24... Kf8 25. Bxf6 Rxf6) 25. Bxf6+ $2 {[%emt 0:00:12]} (25. Rf3) 25... Rxf6 {[%emt 0:00:21]} 26. Rh5 {[%emt 0:00:15]} Bd7 {[%emt 0:00:00][%cal Od7e8]} 27. Bd3 {[%emt 0:00:04]} Rg8 {[%emt 0:00:00] Prevents Rg7} (27... Be8 $16 {is a better defense.} 28. Rhg5 Bg6) 28. Rg7 {[%emt 0:00:04][%csl Gd3][%cal Rg7h7]} Rxh6 {[%emt 0:00:03]} (28... Rxg7 $18 29. hxg7+ Kg8) 29. Rxg8+ {[%emt 0:00:02] Weighted Error Value: White=0.90/Black=0.83.  Loses game:     	---       	Black=3      Missed win:     	White=2     	---        Mistake:       	White=2     	Black=4      Inaccurate:     	White=2     	Black=3      OK:         	White=6     	Black=3      Best:        	White=2     	Black=2      Strong:       	White=1     	Black=2} (29. Rxh7+ $142 Rxh7 30. Rxh7#) 1-0

[Event "European Women Blitz-ch 2024"]
[Site "Monaco"]
[Date "2025.01.10"]
[Round "13.3"]
[White "Ushenina, Anna"]
[Black "Rudzinska, Michalina"]
[Result "1-0"]
[Annotator "TA"]
[ECO "D27"]
[WhiteElo "2418"]
[BlackElo "2226"]
[PlyCount "51"]
[EventDate "2025.01.06"]
[EventType "swiss"]
[EventCountry "MNC"]
[SourceTitle "playchess.com"]
[Source "ChessBase"]
[SourceQuality "1"]
[TimeControl "180+2"]

{[%evp 16,50,-5,-6,-8,-13,-15,-14,-11,-8,26,-41,-22,-28,0,0,148,135,564,552,634,648,713,660,1088,992,2091,2042,2496,2297,2435,1445,29994,29995,29998,29999,29999]} 1. Nf3 {[%emt 0:00:01]} d5 {[%emt 0:00:01]} 2. e3 {[%emt 0:00:01]} Nf6 {[%emt 0:00:01]} 3. c4 {[%emt 0:00:01]} e6 {[%emt 0:00:01]} 4. Nc3 {[%emt 0:00:01]} dxc4 {[%emt 0:00:01]} 5. Bxc4 {[%emt 0:00:02]} a6 {[%emt 0:00:01]} 6. O-O {[%emt 0:00:02]} b5 {[%emt 0:00:01]} 7. Bb3 {[%emt 0:00:05]} Bb7 {[%emt 0:00:02]} 8. Qe2 {[%emt 0:00:03]} c5 {[%emt 0:00:02]} 9. d4 {[%emt 0:00:05]} Nbd7 {[%emt 0:00:09]} 10. e4 {[%emt 0:00:55]} cxd4 {[%emt 0:00:03]} 11. Nxd4 {[%emt 0:00:03]} Qc7 {[%emt 0:00:35] The position is equal.} 12. Bg5 {[%emt 0:00:25]} Bd6 {[%emt 0:00:16]} 13. h3 {[%emt 0:00:18]} ({White should play} 13. Bxe6 $11 Bxh2+ (13... fxe6 14. Nxe6 Qc4 15. Nxg7+ Kf8 16. Qxc4 $11) 14. Kh1 fxe6 15. Nxe6) 13... O-O {[%emt 0:00:06]} 14. Rac1 {[%emt 0:00:02][%cal Oc3b5]} Qb6 {[%emt 0:00:05]} 15. Rfd1 {[%emt 0:00:04][%cal Od4e6]} Be5 {[%emt 0:00:17] [#]} (15... Rad8 $11) 16. Be3 $1 $16 {[%emt 0:00:05][%cal Od4e6] Nxe6! would now be deadly.} b4 $2 {[%emt 0:00:31][%mdl 8192] [#] Black cannot hold the game after this.} (16... Qd8 $16) 17. Nxe6 $1 $18 {[%emt 0:00:11][%mdl 512]} Qa5 {[%emt 0:00:09]} (17... Qxe6 18. Bxe6) 18. Nxf8 {[%emt 0:00:03]} Nxf8 {[%emt 0:00:20]} 19. Nd5 {[%emt 0:00:05]} Bxb2 {[%emt 0:00:03]} 20. Qxb2 {[%emt 0:00:05]} Nxe4 {[%emt 0:00:05]} 21. Qe5 {[%emt 0:00:07]} Qb5 {[%emt 0:00:28]} 22. Qxe4 {[%emt 0:00:03]} Re8 {[%emt 0:00:01]} 23. Qc4 {[%emt 0:00:03]} Qa5 {[%emt 0:00:15] [#]} 24. Nf6+ $1 {[%emt 0:00:06] White mates.} gxf6 {[%emt 0:00:12]} (24... Kh8 25. Qxf7) 25. Qxf7+ {[%emt 0:00:02]} Kh8 {[%emt 0:00:01]} 26. Qg8# {[%emt 0:00:01] Weighted Error Value: White=0.16 (very precise) /Black=1.24.  Loses game:     	---       	Black=1      Mistake:       	White=1     	Black=1      Inaccurate:     	---       	Black=2      OK:         	White=2     	Black=1      Best:        	White=1     	---        Strong:       	White=1     	---        Brilliant:      	White=1     	---} 1-0

[Event "European Women Blitz-ch 2024"]
[Site "Monaco"]
[Date "2025.01.10"]
[Round "13.4"]
[White "Atalik, Ekaterina"]
[Black "Tsolakidou, Stavroula"]
[Result "0-1"]
[Annotator "TA"]
[ECO "D00"]
[WhiteElo "2395"]
[BlackElo "2451"]
[PlyCount "126"]
[EventDate "2025.01.06"]
[EventType "swiss"]
[EventCountry "MNC"]
[SourceTitle "playchess.com"]
[Source "ChessBase"]
[SourceQuality "1"]
[TimeControl "180+2"]

{[%evp 37,126,-62,-22,-28,0,0,0,0,-10,-122,-119,-212,-165,-168,-173,-176,-168,-179,-173,-187,-74,-93,-99,-87,-87,-150,-147,-147,-143,-193,-192,-193,-198,-185,-160,-152,-163,-162,-156,-179,-44,-79,-89,-285,-275,-431,-412,-443,-432,-371,-293,-624,-575,-6107,-6107,-5724,-5724,-29955,-29943,-29964,-29965,-29969,-29970,-29970,-29971,-29971,-29969,-29970,-29971,-29971,-29972,-29972,-29973,-29973,-29974,-29974,-29975,-29975,-29976,-29977,-29974,-29973,-29974,-29974,-29975,-29973,-29975,-29981,-29982,-29986,-29987]} 1. d4 {[%emt 0:00:01]} Nf6 {[%emt 0:00:01]} 2. Nc3 {[%emt 0:00:01]} d5 {[%emt 0:00:03]} 3. Bf4 {[%emt 0:00:02]} g6 {[%emt 0:00:02]} 4. Nb5 {[%emt 0:00:02]} Na6 {[%emt 0:00:01]} 5. e3 {[%emt 0:00:02]} Bg7 {[%emt 0:00:07]} 6. Nf3 {[%emt 0:00:05]} O-O {[%emt 0:00:14]} 7. Be2 {[%emt 0:00:05]} c6 {[%emt 0:00:05]} 8. Na3 {[%emt 0:00:02]} Nc7 {[%emt 0:00:03]} 9. O-O {[%emt 0:00:05]} Nh5 {[%emt 0:00:06]} 10. Be5 {[%emt 0:00:03]} Ne8 {[%emt 0:00:40]} 11. Bxg7 {[%emt 0:00:08]} Kxg7 {[%emt 0:00:02]} 12. Ne5 {[%emt 0:00:06]} Nhf6 {[%emt 0:00:02]} 13. c4 {[%emt 0:00:02]} Ne4 {[%emt 0:00:06]} 14. Bd3 {[%emt 0:00:11]} f6 {[%emt 0:00:10]} 15. Nf3 {[%emt 0:00:02]} Bg4 {[%emt 0:00:05]} 16. Re1 {[%emt 0:00:12]} N8d6 {[%emt 0:00:10]} 17. c5 {[%emt 0:00:07]} Nf7 {[%emt 0:00:06]} 18. h3 {[%emt 0:00:03]} Bxf3 {[%emt 0:00:16]} 19. gxf3 {[%emt 0:00:02]} Neg5 {[%emt 0:00:02]} (19... f5 $5) 20. f4 {[%emt 0:00:03]} Ne4 {[%emt 0:00:32]} (20... Nxh3+ $6 21. Kg2 $14) 21. Bxe4 {[%emt 0:00:07]} dxe4 {[%emt 0:00:02]} 22. Qc2 {[%emt 0:00:03]} Qd5 {[%emt 0:00:02]} 23. Qc4 {[%emt 0:00:04]} (23. Rad1 $11) 23... Qf5 $1 $17 {[%emt 0:00:03]} 24. Kh2 {[%emt 0:00:09]} (24. Kg2 $17) 24... g5 {[%emt 0:00:02]} (24... Ng5 25. fxg5 Qxf2+ 26. Kh1 Qf3+ (26... Qxb2 $2 27. Nc2 $18) (26... fxg5 27. Qe2 $16) 27. Kh2 Qf2+ (27... fxg5 $2 28. Qe2 $16) 28. Kh1 Qf3+ 29. Kh2 Qf2+ $11) 25. Rg1 {[%emt 0:00:07]} Kh8 {[%emt 0:00:01]} 26. Qe2 {[%emt 0:00:18]} gxf4 {[%emt 0:00:10]} 27. Qg4 {[%emt 0:00:01]} Qxg4 {[%emt 0:00:11]} 28. Rxg4 {[%emt 0:00:01]} fxe3 {[%emt 0:00:07]} (28... e5 $1 $19 {is more deadly. Hoping for ...Rad8.} 29. dxe5 Nxe5 30. Rxf4 f5) 29. Rxe4 $17 {[%emt 0:00:04]} exf2 {[%emt 0:00:03]} 30. Rf1 {[%emt 0:00:01]} e5 {[%emt 0:00:04]} 31. Rxf2 {[%emt 0:00:03]} (31. dxe5 $142 Ng5 (31... fxe5 32. Rxf2 Ng5 33. Rxf8+ Rxf8 34. Re3 $11) (31... Nxe5 32. Nc4 $17) 32. Rf4 fxe5 33. R4xf2 Rxf2+ 34. Rxf2) 31... Ng5 $17 {[%emt 0:00:01]} 32. Rg4 {[%emt 0:00:09]} e4 {[%emt 0:00:01]} 33. Nc4 {[%emt 0:00:06]} (33. Kg2 $17) 33... Nf3+ $19 {[%emt 0:00:01]} 34. Rxf3 {[%emt 0:00:13]} exf3 {[%emt 0:00:02]} 35. Nd6 {[%emt 0:00:02]} Rad8 {[%emt 0:00:02]} 36. Kg3 {[%emt 0:00:02]} Rd7 {[%emt 0:00:01]} 37. Kxf3 {[%emt 0:00:03]} Rg8 {[%emt 0:00:12]} 38. b4 {[%emt 0:00:06]} Rxg4 {[%emt 0:00:02]} (38... h5 $1 $19 {[%cal Rh5g4]} 39. Rf4 Rg1) 39. Kxg4 $15 {[%emt 0:00:01]} Kg7 {[%emt 0:00:02]} 40. Kf4 $2 {[%emt 0:00:09]} (40. Kf5 $17) 40... Kg6 $19 {[%emt 0:00:01]} 41. Nf5 {[%emt 0:00:13]} (41. h4 {keeps fighting.}) 41... Kf7 $19 {[%emt 0:00:05]} 42. a4 {[%emt 0:00:06]} Ke6 {[%emt 0:00:01]} 43. Ke4 {[%emt 0:00:14]} Rd5 {[%emt 0:00:02]} 44. Nd6 $2 {[%emt 0:00:02]} (44. Ng7+ Kf7 45. Nf5) 44... b6 {[%emt 0:00:01]} 45. cxb6 {[%emt 0:00:18]} axb6 {[%emt 0:00:01]} (45... Kxd6 $2 46. bxa7 Rh5 47. a8=Q $18 (47. a8=B $2 {too greedy.} Rh4+ 48. Kd3 Rxh3+ 49. Kc2 Ra3 $19)) 46. Nc4 {[%emt 0:00:04]} c5 {[%emt 0:00:04]} 47. dxc5 {[%emt 0:00:05]} bxc5 {[%emt 0:00:01]} 48. bxc5 {[%emt 0:00:06]} Rxc5 {[%emt 0:00:01]} 49. Kd4 {[%emt 0:00:01]} Rh5 {[%emt 0:00:02]} 50. a5 {[%emt 0:00:02]} Rxh3 {[%emt 0:00:03]} 51. a6 {[%emt 0:00:20]} Rh1 {[%emt 0:00:07]} (51... Rh4+ 52. Kc5 Rh5+ 53. Kc6 $17) 52. Kc5 {[%emt 0:00:00]} Ra1 {[%emt 0:00:02]} 53. Kb5 {[%emt 0:00:00]} Rxa6 {[%emt 0:00:08]} 54. Kxa6 {[%emt 0:00:00]} h5 {[%emt 0:00:03]} 55. Kb5 {[%emt 0:00:00]} Kd5 {[%emt 0:00:01]} 56. Ne3+ {[%emt 0:00:00]} Ke4 {[%emt 0:00:01]} 57. Nf1 {[%emt 0:00:02]} h4 {[%emt 0:00:02]} 58. Kc4 {[%emt 0:00:01]} f5 {[%emt 0:00:02]} 59. Kc3 {[%emt 0:00:01] [#]} Kf3 $1 {[%emt 0:00:03]} 60. Kd2 {[%emt 0:00:01]} Kf2 {[%emt 0:00:02]} 61. Ne3 {[%emt 0:00:05]} f4 {[%emt 0:00:01]} 62. Ng4+ {[%emt 0:00:01]} Kg3 {[%emt 0:00:02]} 63. Ne5 {[%emt 0:00:03] [#]} h3 $1 {[%emt 0:00:01]} 0-1